[Event "AI Cup Div-2 2023"]
[Site "Online"]
[Date "2023.09.28"]
[Round "4.2"]
[White "Artemiev, Vladislav"]
[Black "Fedoseev, Vladimir"]
[Result "1/2-1/2"]
[ECO "A30"]
[WhiteElo "2697"]
[BlackElo "2683"]
[Annotator "TA"]
[PlyCount "103"]
[EventDate "2023.09.18"]
[EventType "k.o."]
[EventCountry "NET"]
[SourceTitle "playchess.com"]
[Source "ChessBase"]
[SourceQuality "1"]
[TimeControl "900+3"]

{[%evp 15,103,0,6,2,2,2,2,1,40,42,41,43,33,28,34,8,17,16,16,14,39,22,16,7,13,20,24,15,20,0,0,0,0,0,0,0,0,0,0,0,0,0,0,0,0,0,0,0,0,0,11,11,11,11,11,11,11,6,6,6,6,0,0,0,0,0,0,0,0,0,0,0,0,0,0,0,0,-8,-8,-8,-8,-8,-8,-8,0,-8,0,-8,0,-8]} 1. Nf3 {[%emt 0:00:59]} Nf6 {[%emt 0:00:08]} 2. c4 {[%emt 0:00:08]} g6 {[%emt 0:00:04]} 3. b3 {[%emt 0:00:30]} Bg7 {[%emt 0:00:09]} 4. Bb2 {[%emt 0:00:01]} c5 {[%emt 0:00:22]} 5. g3 {[%emt 0:00:03]} b6 {[%emt 0:00:44]} 6. Bg2 {[%emt 0:00:02]} Bb7 {[%emt 0:00:01]} 7. O-O {[%emt 0:00:06]} O-O {[%emt 0:00:02]} 8. Nc3 {[%emt 0:00:08] 8.d4 is the fancy move.} d5 {[%emt 0:01:05]} 9. Nxd5 {[%emt 0:00:03] A30: Symmetrical English: Double Fianchetto and Hedgehog.} Nxd5 {[%emt 0:00:11]} 10. Bxg7 {[%emt 0:00:01]} Kxg7 {[%emt 0:00:03]} 11. cxd5 {[%emt 0:00:01]} Bxd5 {[%emt 0:00:19]} 12. d4 $1 {[%emt 0:00:23]} Nd7 {[%emt 0:00:17][%cal Bb8d7,Bd7c5,Bc5e4][%mdl 32]} 13. dxc5 {[%emt 0:04:05]} Nxc5 {[%emt 0:00:06]} 14. Qd4+ {[%emt 0:00:30]} Kg8 {[%emt 0:03:28] [#]} 15. Qh4 $146 {[%emt 0:00:06]} (15. Rfd1 $5 {[%cal Rd4d5]} Bxf3 16. Qc4 $11 (16. exf3 Qxd4 17. Rxd4 Rad8 $11)) ({Predecessor:} 15. Rfd1 Bxf3 16. Qf4 Qe8 17. Qxf3 Rd8 18. h4 Qb5 19. Qe3 Rd7 20. Bh3 e6 21. Rxd7 Qxd7 {1-0 Bryakin,M (2429)-Naumovich,Y (1957) Minsk op 2022 (9)}) 15... Ne4 {[%emt 0:01:40]} (15... e6 {seems wilder.} 16. Ng5 h5 17. Rac1 Rc8) 16. Rac1 {[%emt 0:01:25]} e6 {[%emt 0:00:14]} 17. Qf4 {[%emt 0:01:56]} Qf6 {[%emt 0:01:35]} 18. Qxf6 {[%emt 0:02:16]} (18. Ne5 $5 {[%cal Rg2e4]} Qxf4 19. gxf4 $11) 18... Nxf6 {[%emt 0:00:03]} 19. Ne5 {[%emt 0:00:00]} Rfc8 {[%emt 0:00:15]} 20. Rfd1 {[%emt 0:00:33]} Kf8 {[%emt 0:00:42][%cal Bg8f8,Bf8e7,Be7f6][%mdl 32]} 21. f3 {[%emt 0:00:39]} Bb7 {[%emt 0:00:37] The position is equal.} 22. Rxc8+ {[%emt 0:01:36]} Rxc8 {[%emt 0:00:09]} 23. Nd7+ {[%emt 0:00:01]} Ke7 {[%emt 0:01:35]} 24. Nxf6 {[%emt 0:00:01]} Kxf6 $11 {[%emt 0:00:00][%mdl 4096] Endgame KRB-KRB} 25. Rd7 {[%emt 0:00:00]} Ba6 {[%emt 0:00:08]} 26. Bf1 {[%emt 0:00:03]} Rc2 {[%emt 0:00:09][%csl LRa2,LRe2]} 27. Kf2 {[%emt 0:00:00]} Rxa2 {[%emt 0:00:04] [#] ...Bb5 is the strong threat.} 28. Rxa7 {[%emt 0:00:01]} Ra5 {[%emt 0:00:57]} 29. b4 {[%emt 0:00:38]} Ra4 {[%emt 0:00:03]} 30. f4 {[%emt 0:00:11]} Bb5 {[%emt 0:00:05]} 31. Rb7 {[%emt 0:00:01]} Rxb4 {[%emt 0:00:02]} 32. Rxb6 {[%emt 0:00:01][%cal Oe2e4] aiming for e4!} Rb3 {[%emt 0:00:03]} 33. e4 {[%emt 0:00:05]} Bc4 {[%emt 0:00:14][%mdl 64] [#] Discovered Attack} 34. e5+ {[%emt 0:00:01]} Ke7 {[%emt 0:00:17]} 35. Rxb3 {[%emt 0:00:02]} Bxb3 {[%emt 0:00:00] KB-KB} 36. Ke3 {[%emt 0:00:02]} h6 {[%emt 0:00:03]} 37. Bd3 {[%emt 0:00:03]} Bd5 {[%emt 0:00:06]} 38. g4 {[%emt 0:00:06]} g5 {[%emt 0:00:09]} 39. f5 {[%emt 0:00:04]} f6 {[%emt 0:00:02]} 40. exf6+ {[%emt 0:00:02]} Kxf6 {[%emt 0:00:04]} 41. fxe6 {[%emt 0:00:01]} Bxe6 {[%emt 0:00:01]} 42. Kf3 {[%emt 0:00:01]} Ke5 {[%emt 0:00:01]} 43. Kg3 {[%emt 0:00:01]} Bd5 {[%emt 0:00:04]} 44. h4 {[%emt 0:00:01]} Be4 {[%emt 0:00:04]} 45. Be2 {[%emt 0:00:01]} Bd5 {[%emt 0:00:01]} 46. hxg5 {[%emt 0:00:02]} hxg5 {[%emt 0:00:00]} 47. Bd3 {[%emt 0:00:00]} Bc6 {[%emt 0:00:03]} 48. Be2 {[%emt 0:00:02]} Be4 {[%emt 0:00:01]} 49. Bc4 {[%emt 0:00:01]} Bc6 {[%emt 0:00:01]} 50. Be2 {[%emt 0:00:01]} Be4 {[%emt 0:00:01]} 51. Bc4 {[%emt 0:00:01]} Bc6 {[%emt 0:00:01]} 52. Be2 {[%emt 0:00:01] Weighted Error Value: White=0.03 (flawless) /Black=0.03 (flawless)} 1/2-1/2

[Event "AI Cup Div-2 2023"]
[Site "Online"]
[Date "2023.09.28"]
[Round "4.3"]
[White "Fedoseev, Vladimir"]
[Black "Artemiev, Vladislav"]
[Result "1-0"]
[ECO "A29"]
[WhiteElo "2683"]
[BlackElo "2697"]
[Annotator "TA"]
[PlyCount "143"]
[EventDate "2023.09.18"]
[EventType "k.o."]
[EventCountry "NET"]
[SourceTitle "playchess.com"]
[Source "ChessBase"]
[SourceQuality "1"]
[TimeControl "900+3"]

{[%evp 10,143,0,8,18,12,14,1,18,9,9,0,0,-10,-12,-17,-22,-4,8,0,17,16,6,-6,-13,0,0,0,0,-16,-12,-16,0,-8,-12,-15,-16,-29,-21,-13,-19,-26,-25,-38,-9,-20,0,0,0,0,0,0,0,6,0,1,117,117,117,117,116,116,358,358,358,358,358,358,358,358,553,520,700,358,358,358,526,358,358,351,351,351,351,257,560,550,559,250,565,471,547,510,568,539,537,524,484,432,744,710,706,704,629,566,566,539,523,501,571,439,432,413,788,726,948,1524,1524,1524,1514,1479,1857,1842,1632,1561,1505,1500,7668,2436,6155,1382,5764,2548,12153,5727,3014,2377]} 1. c4 {[%emt 0:00:10]} Nf6 {[%emt 0:00:33]} 2. Nc3 {[%emt 0:00:22]} e5 {[%emt 0:00:04]} 3. Nf3 {[%emt 0:00:14]} Nc6 {[%emt 0:00:01]} 4. g3 {[%emt 0:00:07]} d5 {[%emt 0:00:44]} 5. cxd5 {[%emt 0:00:04]} Nxd5 {[%emt 0:00:01]} 6. Bg2 {[%emt 0:00:01][%cal Of3e5]} Bc5 {[%emt 0:00:41] A29: English Opening: Four Knights Variation with 4 g3.} 7. O-O {[%emt 0:00:06][%cal Of3e5]} O-O {[%emt 0:00:04]} 8. Qc2 {[%emt 0:00:24]} Nf6 {[%emt 0:00:53] The position is equal.} 9. a3 {[%emt 0:01:23]} a5 {[%emt 0:01:30]} 10. e3 {[%emt 0:00:40][%cal Of3e5,Be2e3,Be3e4][%mdl 32]} Re8 {[%emt 0:01:22] [#] 10...Bd6 is a critical line.} 11. h3 $146 {[%emt 0:00:09]} ({Predecessor:} 11. d3 h6 12. Nd2 Bg4 13. Nde4 Nxe4 14. Bxe4 Be6 15. Bd2 Qd7 16. Na4 Be7 17. Nc5 Bxc5 18. Qxc5 {½-½ Molin,L-Flecher,J (1941) FRA AJEC/5576 email 2015}) 11... h6 {[%emt 0:01:47]} 12. d3 {[%emt 0:01:34]} Bf5 {[%emt 0:00:36]} 13. Rd1 {[%emt 0:00:09]} Bf8 {[%emt 0:01:03][%cal Oa5a4]} 14. Kh2 {[%emt 0:00:44]} Nd7 {[%emt 0:00:57]} 15. e4 {[%emt 0:02:28]} Be6 {[%emt 0:00:16]} 16. Be3 {[%emt 0:00:03]} Nc5 $1 {[%emt 0:02:08] Black wants to play ...Bb3.} 17. Nd5 $1 {[%emt 0:00:21]} Bxd5 {[%emt 0:00:02]} 18. exd5 {[%emt 0:00:02]} Qxd5 {[%emt 0:00:01]} 19. Rac1 {[%emt 0:01:42][%cal Re3c5]} Ne6 {[%emt 0:00:39]} 20. Ng5 {[%emt 0:02:02][%mdl 64] Discovered Attack} Qb5 {[%emt 0:01:04]} (20... Qd8 {simplifies} 21. Nxe6 Rxe6 22. Rd2 Rb8) 21. a4 $132 {[%emt 0:00:07][%mdl 2048] White puts up resistance} Qb4 {[%emt 0:00:24]} 22. Nxe6 {[%emt 0:00:06]} Rxe6 {[%emt 0:00:04]} 23. Bd2 {[%emt 0:00:08]} Qd4 {[%emt 0:00:29]} 24. Be3 {[%emt 0:00:16]} Qd7 {[%emt 0:00:06]} 25. Qb3 {[%emt 0:00:03]} Bb4 {[%emt 0:00:08]} 26. Qc4 {[%emt 0:00:30]} Rd8 {[%emt 0:00:20]} 27. Qb5 {[%emt 0:00:03]} Qc8 {[%emt 0:00:05]} 28. Bxc6 {[%emt 0:00:10]} bxc6 {[%emt 0:00:00]} 29. Rxc6 {[%emt 0:00:01]} Qd7 {[%emt 0:00:12]} 30. Rdc1 {[%emt 0:00:30]} Rxc6 {[%emt 0:00:06]} ({Don't take} 30... Qxd3 31. Rxe6 (31. Rxc7 Ree8 $11) 31... fxe6 32. Qxe5 $16) 31. Rxc6 {[%emt 0:00:02]} Qxd3 {[%emt 0:00:10]} 32. Rxc7 {[%emt 0:00:02][%cal Oc7c8]} Qd5 {[%emt 0:00:02] [#]} (32... Qe4 $11 33. Rd7 Rxd7 34. Qxd7 f6) 33. Rc8 $3 $16 {[%emt 0:00:10][%mdl 576] Deflection. White is more active.} Kh7 {[%emt 0:00:04] And now ...Qxb5 would win.} 34. Rxd8 {[%emt 0:00:04]} Qxd8 {[%emt 0:00:00]} 35. Qxe5 {[%emt 0:00:01][%mdl 4096] Endgame KQB-KQB} Qd1 $2 {[%emt 0:00:02] [#] This costs Black the game.} (35... Qd3 $16 {was worth a try.} 36. h4 Kg6) 36. Qe4+ $1 $18 {[%emt 0:00:09]} ({Weaker is} 36. Bd4 f6 37. Qe4+ Kh8 $16) 36... Kg8 {[%emt 0:00:03]} 37. Qe8+ {[%emt 0:00:03][%mdl 64] Deflection} Kh7 {[%emt 0:00:01]} 38. Qxf7 {[%emt 0:00:08]} Qd3 {[%emt 0:00:11]} 39. b3 {[%emt 0:00:08]} Bd6 {[%emt 0:00:01]} (39... Qe4 {was called for.} 40. Qc4 Qf5) 40. Qc4 {[%emt 0:00:06]} Qf5 {[%emt 0:00:01]} 41. Kg2 {[%emt 0:00:04]} Kh8 {[%emt 0:00:02]} 42. Qd4 {[%emt 0:00:05]} Qe6 {[%emt 0:00:05]} (42... Bb4 $142 43. Bxh6 Qf7) 43. Qd3 {[%emt 0:00:08]} Bb4 {[%emt 0:00:04]} 44. Qc4 {[%emt 0:00:02]} Qd7 {[%emt 0:00:02]} 45. Bd4 {[%emt 0:00:09]} Qb7+ {[%emt 0:00:01]} 46. Kh2 {[%emt 0:00:01] Strongly threatening Qe6.} Qf3 $2 {[%emt 0:00:06]} (46... Qd7 {is a better chance.} 47. Kg2 Qb7+ 48. Kh2 Kh7) 47. Qc7 {[%emt 0:00:19][%csl Gd4][%cal Rc7g7]} Qf8 {[%emt 0:00:02]} 48. Qb7 {[%emt 0:00:13]} (48. Qa7 $142 Kg8 49. h4) 48... Kh7 $2 {[%emt 0:00:04]} (48... Bc5) 49. Kg2 {[%emt 0:00:01]} Qg8 {[%emt 0:00:04]} 50. h4 {[%emt 0:00:03]} Kh8 {[%emt 0:00:03]} 51. Qc6 {[%emt 0:00:09]} Kh7 {[%emt 0:00:03]} 52. Qe4+ {[%emt 0:00:02]} Kh8 {[%emt 0:00:00]} 53. Qb7 {[%emt 0:00:14]} h5 {[%emt 0:00:03]} (53... Qf8 $142 54. Qc7 Kh7) 54. Kh2 {[%emt 0:00:08]} Qf8 {[%emt 0:00:03]} 55. Qd5 {[%emt 0:00:04]} Qe8 {[%emt 0:00:01]} 56. Qg5 {[%emt 0:00:08][%csl Gd4][%cal Rg5g7]} Qf7 {[%emt 0:00:02]} 57. Kg2 {[%emt 0:00:06]} Kh7 {[%emt 0:00:03]} 58. Qe5 {[%emt 0:00:03]} Qb7+ {[%emt 0:00:08]} 59. Kh2 {[%emt 0:00:02]} Qf7 {[%emt 0:00:01]} 60. Qe3 {[%emt 0:00:03]} Qd5 {[%emt 0:00:05]} (60... Qf5 $142 61. Qe2 Qd5) 61. Qd3+ {[%emt 0:00:03] White is clearly winning.} g6 {[%emt 0:00:04]} 62. Qc4 {[%emt 0:00:03] Threatening mate with Qc7+.} Qd7 {[%emt 0:00:02] Repels Qc7} 63. Be5 {[%emt 0:00:03]} Qe7 {[%emt 0:00:04]} 64. Qc7 {[%emt 0:00:08]} Qxc7 {[%emt 0:00:04]} 65. Bxc7 {[%emt 0:00:00] KB-KB} Kg7 {[%emt 0:00:00]} 66. Kg2 {[%emt 0:00:01] aiming for Kf3.} Kf6 {[%emt 0:00:01]} 67. Kf3 {[%emt 0:00:01]} Kf5 {[%emt 0:00:00]} 68. Ke2 {[%emt 0:00:03]} (68. Bf4 $142 Ke6 69. Ke2) 68... Ke4 {[%emt 0:00:02]} 69. Bb6 {[%emt 0:00:02]} (69. Bf4 $142 Be7 70. Bd2) 69... Bc3 {[%emt 0:00:04]} 70. Be3 {[%emt 0:00:06]} Kd5 {[%emt 0:00:06]} 71. Bd2 {[%emt 0:00:06]} Kd4 {[%emt 0:00:00]} 72. f3 {[%emt 0:00:03] Excellently played by Fedoseev!   Weighted Error Value: White=0.21 (precise) /Black=0.42} 1-0

[Event "AI Cup Div-2 2023"]
[Site "Online"]
[Date "2023.09.28"]
[Round "4.4"]
[White "Artemiev, Vladislav"]
[Black "Fedoseev, Vladimir"]
[Result "1-0"]
[ECO "D45"]
[WhiteElo "2697"]
[BlackElo "2683"]
[Annotator "TA"]
[PlyCount "51"]
[EventDate "2023.09.18"]
[EventType "k.o."]
[EventCountry "NET"]
[SourceTitle "playchess.com"]
[Source "ChessBase"]
[SourceQuality "1"]
[TimeControl "900+3"]

{[%evp 13,51,-9,0,0,0,0,0,-15,0,-25,-7,-34,-22,-7,-16,-30,-15,-74,-72,-89,25,13,16,31,38,40,41,14,12,22,16,14,8,6,83,79,508,481,1881,1800]} 1. d4 {[%emt 0:00:44]} d5 {[%emt 0:00:17]} 2. c4 {[%emt 0:00:02]} c6 {[%emt 0:00:03]} 3. Nc3 {[%emt 0:00:05]} Nf6 {[%emt 0:00:30]} 4. e3 {[%emt 0:00:20]} e6 {[%emt 0:00:06]} 5. Nf3 {[%emt 0:00:54]} Be7 {[%emt 0:00:04]} 6. Qc2 {[%emt 0:00:32]} O-O {[%emt 0:00:06]} 7. Bd2 {[%emt 0:01:26]} Nbd7 {[%emt 0:00:44]} 8. Bd3 {[%emt 0:02:22] D45: Semi-Slav: 5 e3.} dxc4 {[%emt 0:00:12]} 9. Bxc4 {[%emt 0:00:01]} c5 {[%emt 0:00:07]} 10. dxc5 {[%emt 0:00:26] The position is equal.} Bxc5 {[%emt 0:00:09]} 11. Ng5 {[%emt 0:01:44]} b6 {[%emt 0:01:51] [#]} 12. Nce4 $146 {[%emt 0:03:20]} ({Predecessor:} 12. Bd3 h6 13. Nh7 Ne5 14. Nxf6+ Qxf6 15. Bh7+ Kh8 16. Ne4 Qe7 17. Nxc5 f5 18. Nd3 Nxd3+ 19. Qxd3 Kxh7 {½-½ Heberla,B (2572)-Sadzikowski,D (2507) POL-ch Warsaw 2020 (3.2)}) 12... Bb7 {[%emt 0:04:26]} (12... Nxe4 {simplifies} 13. Nxe4 Bb7 14. Nxc5 Nxc5 15. O-O Be4) 13. Nxf6+ {[%emt 0:00:04]} Nxf6 {[%emt 0:00:04]} 14. Bc3 {[%emt 0:00:01] Bxf6 would be deadly.} g6 $1 {[%emt 0:00:02]} 15. Rd1 {[%emt 0:00:57]} (15. h4 $11 {remains equal.} Bxg2 16. Rg1) 15... Qe7 $1 $17 {[%emt 0:00:09]} 16. O-O {[%emt 0:00:02]} Nd5 {[%emt 0:00:26]} (16... Ng4 $1 $17 17. Ne4 (17. Nf3 Qc7 $17) 17... Qh4) 17. Bxd5 $11 {[%emt 0:00:01]} Bxd5 {[%emt 0:00:05]} 18. Ne4 {[%emt 0:00:01] Black must now prevent Nf6+.} f5 {[%emt 0:01:23]} 19. Nxc5 {[%emt 0:00:03]} Qxc5 {[%emt 0:00:01]} 20. Qa4 $40 {[%emt 0:00:24][%mdl 128] Threatens to win with Qf4. White has some attack.} Qc4 {[%emt 0:00:43]} 21. Qd7 {[%emt 0:00:36][%csl Gc3][%cal Rd7g7]} (21. Rd4 {simplifies} Qxa4 22. Rxa4 Rf7 23. Rd1) 21... Rf7 {[%emt 0:00:03] Against Qg7+} (21... Qxa2 $2 22. Qg7#) 22. Qd6 {[%emt 0:00:00] And now Qe5 would win.} Qc7 {[%emt 0:00:03]} 23. Qa3 {[%emt 0:00:34]} ({Much weaker is} 23. Rxd5 exd5 24. Qxd5 Rd8 $17) 23... Qe7 {[%emt 0:00:40] [#]} (23... a5 $11) 24. Qa4 $1 $16 {[%emt 0:00:12][%cal Od1d5] aiming for Rxd5!} Qg5 $2 {[%emt 0:00:22][%mdl 8192] [#]} (24... Rd8 $16) 25. Rxd5 $1 $18 {[%emt 0:00:02]} e5 {[%emt 0:01:57]} (25... exd5 $142 26. Qd4 Qf6) 26. Rxe5 {[%emt 0:00:06] Weighted Error Value: White=0.11 (very precise) /Black=0.53} 1-0

[Event "AI Cup Div-2 2023"]
[Site "Online"]
[Date "2023.09.28"]
[Round "4.5"]
[White "Artemiev, Vladislav"]
[Black "Fedoseev, Vladimir"]
[Result "0-1"]
[ECO "D78"]
[WhiteElo "2697"]
[BlackElo "2683"]
[Annotator "TA"]
[PlyCount "86"]
[EventDate "2023.09.18"]
[EventType "k.o."]
[EventCountry "NET"]
[SourceTitle "playchess.com"]
[Source "ChessBase"]
[SourceQuality "1"]
[TimeControl "900+3"]

{[%evp 16,85,12,0,0,0,0,7,2,9,47,0,18,14,18,10,47,52,47,48,48,48,48,48,56,61,71,0,0,0,0,0,0,0,8,0,0,0,0,0,0,0,16,0,0,0,10,10,21,13,11,0,22,11,13,16,34,-16,0,-10,-11,-15,-2,-2,-2,-6,0,-2,0,-29998,-29999,-29999]} 1. Nf3 {[%emt 0:00:11]} Nf6 {[%emt 0:05:10]} 2. g3 {[%emt 0:00:09]} g6 {[%emt 0:00:05]} 3. Bg2 {[%emt 0:00:07]} Bg7 {[%emt 0:00:04]} 4. d4 {[%emt 0:00:04]} d5 {[%emt 0:00:04]} 5. O-O {[%emt 0:00:04]} O-O {[%emt 0:00:05]} 6. c4 {[%emt 0:00:03]} c6 {[%emt 0:00:03][%cal Bc7c6,Bc6c5][%mdl 32]} 7. Nbd2 {[%emt 0:00:05]} c5 $5 {[%emt 0:00:04][%mdl 4] Leaves trodden paths.} 8. b3 {[%emt 0:00:54]} Ne4 {[%emt 0:00:06]} 9. Bb2 {[%emt 0:00:05] Threatening cxd5.} Nxd2 $1 {[%emt 0:00:04] D78: Fianchetto Grünfeld: 6 0-0 c6.} 10. Qxd2 {[%emt 0:00:06] next cxd5 is good for White.} dxc4 {[%emt 0:00:03]} 11. bxc4 {[%emt 0:00:05]} (11. dxc5 $2 {too greedy.} Qxd2 12. Nxd2 c3 13. Bxc3 Bxc3 $19) 11... cxd4 {[%emt 0:00:04] The position is equal.} 12. Nxd4 {[%emt 0:00:27]} Nc6 {[%emt 0:00:05][%cal Rg7d4]} (12... e5 $5 {[%cal Re5d4]} 13. Nb3 Nc6 $11) 13. e3 {[%emt 0:00:53] [#]} (13. Rfd1 $14 Bxd4 14. Bxd4 Nxd4 15. Qxd4 Qxd4 16. Rxd4) 13... Be6 $146 {[%emt 0:00:40]} ({Predecessor:} 13... Bg4 14. h3 Bd7 15. Rfd1 Qc8 16. Nxc6 Bxc6 17. Bxg7 Kxg7 18. Qd4+ Kg8 19. Bxc6 Qxc6 {½-½ Eriksson,A (2278)-Hjelm,N (2321) SWE-chT 1415 Elite 2014 (4)}) 14. Qe2 {[%emt 0:01:30] Threatens to win with Nxe6.} Nxd4 {[%emt 0:00:10]} 15. exd4 {[%emt 0:00:05]} Rc8 {[%emt 0:00:04]} (15... Bxd4 $2 16. Rad1 $18 (16. Bxb7 Bxb2 17. Rad1 Qb6 $17)) 16. d5 {[%emt 0:00:22]} ({Much weaker is} 16. Bxb7 Bxc4 17. Qd2 Bxf1 18. Bxc8 Qd5 $17) 16... Bg4 {[%emt 0:00:23][%mdl 64] Deflection} 17. Qxg4 {[%emt 0:00:20]} Bxb2 {[%emt 0:00:06]} 18. Rab1 {[%emt 0:00:04]} Ba3 {[%emt 0:00:27] Black is weak on the light squares} 19. Rxb7 {[%emt 0:00:04]} Qa5 {[%emt 0:00:06]} 20. Qe2 {[%emt 0:02:03]} Qa4 {[%emt 0:00:30] [#]} 21. Bh3 {[%emt 0:00:45]} (21. Rb3 $1 $16) 21... Rxc4 $11 {[%emt 0:00:40]} 22. Rxa7 {[%emt 0:02:38][%mdl 64] Deflection} Qxa7 {[%emt 0:00:06]} 23. Qxc4 {[%emt 0:00:03]} Rb8 {[%emt 0:00:04]} 24. Re1 {[%emt 0:00:15]} h5 {[%emt 0:00:17]} 25. Re2 {[%emt 0:00:12]} Bd6 {[%emt 0:00:04]} 26. Bf1 {[%emt 0:00:28]} Rb4 {[%emt 0:00:21]} 27. Qc8+ {[%emt 0:00:05]} Kg7 {[%emt 0:00:04]} 28. Rd2 {[%emt 0:00:24]} Qa3 {[%emt 0:00:12]} 29. Qc2 {[%emt 0:00:15]} (29. Kg2 {looks sharper.} h4 30. Rc2 Be5 31. Qc5) 29... h4 {[%emt 0:00:12]} 30. Kg2 {[%emt 0:00:09]} hxg3 {[%emt 0:00:41]} 31. hxg3 {[%emt 0:00:05]} Be5 {[%emt 0:00:09]} 32. Qc5 {[%emt 0:00:26]} Bd6 {[%emt 0:00:22]} 33. Qc2 {[%emt 0:00:19]} Be5 {[%emt 0:00:05]} 34. Re2 {[%emt 0:00:58]} Bd6 {[%emt 0:00:12]} 35. Qd1 {[%emt 0:00:12]} Kg8 {[%emt 0:00:08]} 36. Qa1 {[%emt 0:00:09]} (36. Rc2 $14) 36... Qa5 {[%emt 0:00:09]} (36... Qd3 $5 {[%cal Rb4b1]} 37. Qc1 Qxd5+ 38. Kg1 Rd4 $15) 37. Rc2 {[%emt 0:00:12]} Qxd5+ {[%emt 0:00:11]} 38. Kg1 {[%emt 0:00:04] Rc8+ would kill now.} Qb7 {[%emt 0:00:09] Prevents Rc8+.} 39. a4 {[%emt 0:00:12]} (39. Qc3 {simplifies} e6 40. Qc6 Qxc6 41. Rxc6 Be7 42. Kg2) 39... Rb1 $36 {[%emt 0:00:10][%mdl 2048] White is under pressure.} 40. Qa2 {[%emt 0:00:07]} Be5 {[%emt 0:00:40]} 41. Qc4 {[%emt 0:00:22]} Ra1 {[%emt 0:00:09]} 42. Re2 $2 {[%emt 0:00:09][%mdl 8192] [#]} (42. Qb5 $11 Qe4 43. Qe8+ Kg7 44. Rc8) 42... Rxf1+ $1 {[%emt 0:00:07][%mdl 576] Deflection, Back Rank} 43. Kxf1 {[%emt 0:00:06]} (43. Kh2 Rh1#) 43... Qh1# {[%emt 0:00:03] Weighted Error Value: White=0.29 (precise) /Black=0.07 (flawless)} 0-1